bitfinex/quotes_SOLUSD_20251128
["timestamp","ask_amount","ask_price","bid_price","bid_amount"]
[1764357374264,0.67,137.54,137.51,7.96182211]
[1764357376724,0.67,137.54,137.51,10.42332102]
[1764357377044,21.37302172,137.59,137.53,2.46149891]
[1764357377245,7.98762734,137.6,137.56,2.46149891]
[1764357377421,0.72,137.6,137.57,2.46149891]
[1764357377624,0.72,137.6,137.57,3.17149891]
[1764357378026,7.98747093,137.6,137.57,3.17149891]
[1764357378228,0.72,137.62,137.58,3.17149891]
[1764357378441,0.72,137.62,137.59,0.71]
[1764357378752,10.4480604,137.62,137.57,5.66149891]
[1764357378924,10.4480604,137.62,137.57,6.37149891]
[1764357379248,0.72,137.61,137.58,0.71]
[1764357379450,0.72,137.61,137.58,3.17149891]
[1764357379831,0.72,137.61,137.58,10.43997233]
[1764357380137,0.72,137.61,137.58,3.17149891]
[1764357380931,0.72,137.61,137.58,0.71]
[1764357381236,0.72,137.61,137.57,13.64037943]
[1764357381850,7.98733494,137.61,137.57,10.46888052]
[1764357382244,0.72,137.6,137.57,10.46888052]
[1764357382641,0.72,137.6,137.58,9.72992256]
[1764357382958,7.26532984,137.64,137.59,2.46149891]
[1764357383132,0.72,137.63,137.6,2.46149891]
[1764357383738,0.72,137.63,137.59,2.46149891]
[1764357384050,0.72,137.63,137.6,0.71]
[1764357384351,0.72,137.63,137.6,7.97734978]
[1764357385752,0.72,137.63,137.6,10.43884869]
[1764357386355,7.98634488,137.63,137.59,2.46149891]
[1764357386532,7.98634488,137.63,137.59,0.71]
[1764357386735,0.72,137.62,137.59,0.71]
[1764357387438,0.72,137.62,137.59,7.97793982]
[1764357387841,7.98639531,137.62,137.58,7.26847117]
[1764357388235,0.72,137.61,137.58,7.26847117]
[1764357390341,0.72,137.62,137.59,0.71]
[1764357391456,7.98646404,137.62,137.58,10.43997008]
[1764357392466,7.98646404,137.62,137.58,7.97847117]
[1764357392656,7.98646404,137.62,137.59,0.71]
[1764357394536,0.72,137.61,137.57,13.64035853]
[1764357395055,0.72,137.61,137.57,12.93035853]
[1764357395261,0.72,137.61,137.58,0.68]
[1764357395746,10.44850071,137.61,137.57,7.26885962]
[1764357395949,10.44850071,137.61,137.57,7.94885962]
[1764357396265,0.72,137.6,137.57,7.94885962]
[1764357398655,7.98750003,137.6,137.57,0.68]
[1764357398959,0.72,137.6,137.57,7.94901488]
[1764357399140,0.72,137.6,137.57,7.26901488]
[1764357399565,0.72,137.6,137.57,7.94901488]
[1764357401260,7.98765065,137.6,137.57,7.26901488]
[1764357401863,7.98765065,137.6,137.57,7.94901488]
[1764357403743,7.98765065,137.6,137.58,0.68]
[1764357403744,7.26765065,137.6,137.58,0.68]
[1764357403944,7.98684435,137.62,137.58,3.14149891]
[1764357404362,7.98684435,137.62,137.59,0.68]
[1764357405254,7.26684435,137.62,137.59,0.68]
[1764357405564,0.72,137.61,137.59,0.68]
[1764357406866,0.72,137.61,137.58,7.94806705]
[1764357410064,104.82,137.63,137.59,0.68]
[1764357410268,110.48149891,137.63,137.59,0.68]
[1764357410669,20.63305388,137.66,137.59,3.14149891]
[1764357410670,0.72,137.66,137.59,3.14149891]
[1764357410847,108.22,137.67,137.61,2.46149891]
[1764357411051,105.02,137.67,137.62,5.66149891]
[1764357411259,112.28385928,137.67,137.62,5.66149891]
[1764357411466,0.72,137.66,137.63,0.68]
[1764357412741,0.72,137.66,137.63,7.94583036]
[1764357413153,0.72,137.66,137.64,0.68]
[1764357413356,105.02,137.67,137.64,0.68]
[1764357414247,112.28384489,137.67,137.64,0.68]
[1764357414876,0.2,137.67,137.64,11.79153436]
[1764357415073,0.2,137.67,137.65,4.5262688]
[1764357415564,0.2,137.67,137.66,0.68]
[1764357417167,0.2,137.67,137.66,7.94427429]
[1764357417868,0.2,137.67,137.66,11.79054309]
[1764357418169,0.2,137.67,137.66,16.988864]
[1764357419462,0.2,137.67,137.66,24.25313829]
[1764357420562,0.92,137.67,137.66,7.26427429]
[1764357421566,0.2,137.67,137.66,7.26427429]
[1764357422283,0.2,137.67,137.66,7.94427429]
[1764357423981,0.2,137.67,137.66,7.26427429]
[1764357424160,0.92,137.67,137.66,7.26427429]
[1764357424368,0.2,137.67,137.66,7.94427429]
[1764357424964,0.92,137.67,137.66,7.26427429]
[1764357427360,0.2,137.67,137.66,7.26427429]
[1764357427978,0.2,137.67,137.66,7.96427429]
[1764357428381,0.2,137.67,137.66,7.26427429]
[1764357428782,0.2,137.67,137.66,7.96427429]
[1764357428985,0.2,137.67,137.66,7.26427429]
[1764357429366,0.2,137.67,137.66,7.96427429]
[1764357430687,0.2,137.67,137.66,11.81054309]
[1764357430894,0.2,137.67,137.66,20.62048801]
[1764357432785,0.2,137.67,137.66,36.92935201]
[1764357433884,0.2,137.67,137.64,3.61046676]
[1764357434192,0.2,137.67,137.66,16.308864]
[1764357435183,0.2,137.67,137.66,20.1551328]
[1764357435484,0.2,137.67,137.66,3.8462688]
[1764357436083,0.2,137.67,137.66,11.11054309]
[1764357436286,0.2,137.67,137.66,28.07940709]
[1764357436584,0.2,137.67,137.66,36.88935201]
[1764357437597,0.2,137.67,137.66,40.08935201]
[1764357440395,0.2,137.67,137.66,40.37367515]
[1764357440687,0.2,137.68,137.67,9.09426806]
[1764357440867,0.2,137.68,137.67,13.60053686]
[1764357441391,0.2,137.68,137.67,16.51036845]
[1764357441594,0.2,137.68,137.67,23.77411509]
[1764357442065,0.2,137.68,137.67,20.8642835]
[1764357442260,0.2,137.68,137.67,20.57996036]
[1764357442465,0.2,137.68,137.67,27.41887944]
[1764357443065,0.2,137.68,137.67,23.57261064]
[1764357445193,0.2,137.68,137.67,27.41887944]
[1764357447301,0.2,137.68,137.67,23.57261064]
[1764357447681,0.88,137.68,137.67,7.26374664]
[1764357450990,0.88,137.68,137.66,10.46415512]
[1764357451597,0.68,137.67,137.62,6.75715916]
[1764357451770,3.8462688,137.63,137.62,2.91089036]
[1764357451971,3.8462688,137.63,137.59,3.2]
[1764357452176,4.5262688,137.62,137.6,16.308864]
[1764357452692,0.68,137.61,137.6,16.308864]
[1764357452994,0.68,137.61,137.59,10.46782626]
[1764357458896,0.68,137.61,137.6,16.308864]
[1764357466081,0.69,137.62,137.6,16.308864]
[1764357467421,7.26556065,137.64,137.6,28.0923209]
[1764357467599,0.69,137.63,137.6,28.0923209]
[1764357468321,0.69,137.63,137.6,23.5760521]
[1764357470202,7.95591921,137.63,137.6,23.5760521]
[1764357470403,0.69,137.62,137.6,16.308864]
[1764357470603,0.69,137.62,137.6,23.57622833]
[1764357471716,0.69,137.62,137.6,16.308864]
[1764357474504,0.69,137.62,137.59,14.98402348]
[1764357475513,7.95647543,137.62,137.59,7.0462688]
[1764357475695,7.95647543,137.62,137.59,3.2]
[1764357475896,0.69,137.61,137.58,27.42348527]
[1764357476090,0.69,137.61,137.58,28.09348527]
[1764357476512,0.69,137.61,137.58,26.71068426]
[1764357477014,0.69,137.61,137.58,26.04068426]
[1764357477324,0.69,137.61,137.58,9.73182026]
[1764357478592,7.95709036,137.61,137.57,12.93224347]
[1764357478799,7.95709036,137.61,137.57,5.66346779]
[1764357478997,0.69,137.6,137.57,6.33346779]
[1764357479225,0.69,137.6,137.57,13.6024256]
[1764357481829,0.69,137.6,137.58,3.13346779]
[1764357482120,7.26638598,137.62,137.59,2.46346779]
[1764357482297,7.9558412,137.64,137.61,2.46346779]
[1764357482715,7.9558412,137.64,137.61,3.13346779]
[1764357482905,7.2658412,137.64,137.61,2.46346779]
[1764357483104,0.69,137.63,137.61,2.46346779]
[1764357488319,7.2658412,137.64,137.61,2.46346779]
[1764357488528,7.9858412,137.64,137.62,3.14346779]
[1764357488915,7.9858412,137.64,137.62,2.46346779]
[1764357489597,0.72,137.63,137.6,7.26733753]
[1764357490005,0.72,137.63,137.6,7.94733753]
[1764357490803,0.72,137.63,137.6,10.41080532]
[1764357493431,0.72,137.63,137.6,7.94733753]
[1764357496807,0.72,137.63,137.54,2.46346779]
[1764357496808,2.46346779,137.61,137.54,2.46346779]
[1764357497015,2.46346779,137.57,137.53,0.1]
[1764357497307,2.46346779,137.57,137.53,3.26346779]
[1764357497523,0.69,137.56,137.53,3.26346779]
[1764357498430,0.69,137.56,137.53,0.1]
[1764357498631,2.46346779,137.55,137.53,0.1]
[1764357498834,2.46346779,137.54,137.53,0.1]
[1764357499128,0.69,137.55,137.53,0.1]
[1764357499363,2.46346779,137.54,137.53,0.1]
[1764357499636,9.73407997,137.54,137.53,0.1]
[1764357499934,10.42407997,137.54,137.53,0.1]
[1764357500140,0.69,137.54,137.53,0.1]
[1764357501031,7.96061218,137.54,137.53,0.1]
[1764357502713,10.42407997,137.54,137.53,0.1]
[1764357505938,7.96061218,137.54,137.53,0.1]
[1764357507432,10.42407997,137.54,137.53,0.1]
[1764357507952,7.96061218,137.54,137.53,0.1]
[1764357509144,10.42407997,137.54,137.53,0.1]
[1764357509379,16.308864,137.53,137.48,0.1]
[1764357509648,2.46346779,137.49,137.48,0.1]
[1764357510035,3.15346779,137.49,137.48,0.1]
[1764357510246,3.15346779,137.52,137.48,0.8]
[1764357510557,0.69,137.51,137.48,0.8]
[1764357511519,7.96250264,137.51,137.48,0.8]
[1764357512143,2.91492075,137.57,137.5,2.46346779]
[1764357512332,0.69,137.56,137.52,2.46346779]
[1764357512729,0.69,137.56,137.52,3.16346779]
[1764357513331,28.59691064,137.56,137.52,0.7]
[1764357513529,28.59691064,137.56,137.51,3.16346779]
[1764357513748,0.69,137.55,137.51,0.7]
[1764357514549,0.69,137.55,137.51,3.16346779]
[1764357515050,0.69,137.55,137.52,0.7]
[1764357515448,7.96057343,137.55,137.52,0.7]
[1764357517524,3.2,137.57,137.53,2.46346779]
[1764357517740,7.26892025,137.58,137.54,2.46346779]
[1764357517952,0.7,137.57,137.53,3.12346779]
[1764357518165,7.26892025,137.58,137.53,3.12346779]
[1764357518331,7.96892025,137.58,137.54,0.66]
[1764357518528,25.44016607,137.58,137.54,0.66]
[1764357518727,0.7,137.57,137.54,0.66]
[1764357519047,3.16346779,137.57,137.53,0.66]
[1764357519733,7.9695551,137.56,137.52,2.46346779]
[1764357519938,5.66346779,137.55,137.51,0.66]
[1764357520123,6.36346779,137.55,137.51,0.66]
[1764357520829,3.16346779,137.54,137.5,7.27255473]
[1764357521048,3.16346779,137.54,137.51,0.66]
[1764357521741,7.97151823,137.53,137.5,0.66]
[1764357522234,7.27151823,137.53,137.5,0.66]
[1764357522443,7.97151823,137.53,137.5,0.66]
[1764357523039,10.43498602,137.53,137.5,0.66]
[1764357524262,10.43498602,137.53,137.5,7.9325668]
[1764357524263,7.27151823,137.53,137.5,7.9325668]
[1764357524463,7.26984604,137.56,137.5,10.39603459]
[1764357524666,7.26984604,137.56,137.52,2.46346779]
[1764357525061,7.26984604,137.56,137.53,0.66]
[1764357525361,7.2692816,137.57,137.53,0.66]
[1764357525848,7.9692816,137.57,137.53,0.66]
[1764357526056,10.43274939,137.57,137.53,0.66]
[1764357526372,7.2692816,137.57,137.53,7.9309609]
[1764357526557,7.2692816,137.57,137.54,0.66]
[1764357526864,7.9692816,137.57,137.54,0.66]
[1764357527166,7.26882507,137.58,137.54,3.12346779]
[1764357527369,20.63404348,137.59,137.55,2.46346779]
[1764357527370,7.26816904,137.59,137.55,2.46346779]
[1764357527531,7.26816904,137.59,137.56,0.66]
[1764357527732,9.73063693,137.61,137.56,3.12346779]
[1764357527932,7.26716914,137.61,137.56,3.12346779]
[1764357528235,0.7,137.62,137.57,3.12346779]
[1764357528462,10.4300654,137.62,137.58,7.26849832]
[1764357528633,10.4300654,137.62,137.58,7.92849832]
[1764357528837,10.4300654,137.62,137.59,0.66]
[1764357529136,2.46346779,137.61,137.58,7.92849832]
[1764357529967,10.4300654,137.62,137.59,0.66]
[1764357530165,10.4300654,137.62,137.58,7.92849832]
[1764357530363,10.4300654,137.62,137.59,0.66]
[1764357531467,10.43051906,137.61,137.57,0.66]
[1764357532673,10.43051906,137.61,137.57,7.92899602]
[1764357532849,10.43051906,137.61,137.58,0.66]
[1764357533260,9.73006354,137.62,137.58,0.66]
[1764357533459,10.43006354,137.62,137.58,0.66]
[1764357534872,10.43006354,137.62,137.58,7.9283146]
[1764357534873,7.96659575,137.62,137.58,7.9283146]
[1764357535172,0.7,137.61,137.58,7.9283146]
[1764357536478,0.7,137.61,137.58,0.66]
[1764357536479,10.43051326,137.61,137.58,0.66]
[1764357536665,11.81742855,137.61,137.57,0.66]
[1764357538461,11.81742855,137.61,137.57,7.92887016]
[1764357538660,11.81742855,137.61,137.58,0.66]
[1764357538862,7.26663387,137.62,137.58,0.66]
[1764357539069,15.01701695,137.62,137.58,0.66]
[1764357540279,15.01701695,137.62,137.58,7.92840595]
[1764357540852,3.85038308,137.6,137.56,3.86]
[1764357541079,3.85038308,137.59,137.56,3.86]
[1764357541375,3.85038308,137.59,137.56,3.2]
[1764357541679,0.7,137.6,137.57,0.66]
[1764357541982,11.81807479,137.6,137.57,0.66]
[1764357542167,7.96769171,137.6,137.57,0.66]
[1764357542367,11.81807479,137.6,137.57,0.66]
[1764357545167,7.26769171,137.6,137.57,0.66]
[1764357545362,7.98769171,137.6,137.57,0.66]
[1764357545568,7.2668947,137.62,137.58,11.1188814]
[1764357546071,7.2668947,137.62,137.59,0.65]
[1764357546988,7.9868947,137.62,137.59,0.65]
[1764357548199,7.2668947,137.62,137.59,0.65]
[1764357548787,7.9868947,137.62,137.59,0.65]
[1764357552177,0.72,137.62,137.59,7.91791902]
[1764357552996,7.98663806,137.62,137.59,7.91791902]
[1764357553180,7.98663806,137.62,137.59,0.65]
[1764357553489,3.85038308,137.6,137.56,7.26928927]
[1764357553693,3.85038308,137.58,137.55,7.91992857]
[1764357554071,4.57038308,137.59,137.55,7.91992857]
[1764357554398,4.57038308,137.61,137.56,4.50038308]
[1764357554577,11.11702114,137.62,137.57,3.85038308]
[1764357554898,11.81702114,137.62,137.57,4.54038308]
[1764357555103,4.55038308,137.62,137.58,7.95849832]
[1764357555276,11.81681486,137.62,137.58,7.95849832]
[1764357555471,118.41648901,137.63,137.59,0.69]
[1764357555672,115.91648901,137.63,137.59,0.69]
[1764357555880,3.2,137.64,137.59,4.54038308]
[1764357556093,119.11544203,137.65,137.6,3.85038308]
[1764357556295,108.0,137.65,137.61,16.308864]
[1764357556499,108.0,137.65,137.61,16.998864]
[1764357556801,115.26482576,137.65,137.62,0.69]
[1764357557595,0.7,137.64,137.61,7.95650084]
[1764357558302,0.7,137.64,137.6,7.26720052]
[1764357558479,4.55038308,137.64,137.61,0.69]
[1764357559087,119.11520884,137.65,137.61,0.69]
[1764357559293,0.7,137.64,137.61,0.69]
[1764357559896,0.7,137.64,137.61,7.95645299]
[1764357560778,4.55038308,137.64,137.61,7.95645299]
[1764357562905,3.85038308,137.64,137.61,7.26645299]
[1764357563083,4.55038308,137.63,137.61,7.26645299]
[1764357564489,0.7,137.63,137.61,7.26645299]
[1764357565297,0.7,137.63,137.6,7.26744186]
[1764357565492,3.85038308,137.62,137.59,16.308864]
[1764357565695,3.85038308,137.62,137.59,16.998864]
[1764357565900,0.7,137.61,137.59,23.5765818]
[1764357566080,0.7,137.61,137.59,24.2665818]
[1764357566280,4.55038308,137.62,137.59,24.2665818]
[1764357566804,0.7,137.62,137.59,23.5765818]
[1764357567001,0.7,137.62,137.59,24.2665818]
[1764357570305,7.96640271,137.62,137.59,24.2665818]
[1764357570481,14.31647357,137.63,137.6,0.69]
[1764357570686,0.7,137.62,137.59,24.2665818]
[1764357572319,3.85038308,137.6,137.53,0.69]
[1764357572611,3.85038308,137.57,137.53,0.69]
[1764357572786,3.85038308,137.58,137.53,4.54038308]
[1764357572988,4.55038308,137.59,137.54,3.85038308]
[1764357573313,4.55038308,137.59,137.54,11.81084959]
[1764357573501,11.81835564,137.59,137.55,0.69]
[1764357573696,7.96797256,137.59,137.55,0.69]
[1764357574094,11.81835564,137.59,137.55,0.69]
[1764357575534,16.308864,137.63,137.58,3.85038308]
[1764357575829,0.2,137.68,137.63,8.80994492]
[1764357576006,0.2,137.68,137.66,16.308864]
[1764357576191,0.2,137.68,137.67,16.308864]
[1764357577422,4.75038308,137.68,137.63,0.65]
[1764357577818,0.7,137.67,137.63,0.65]
[1764357578525,0.7,137.67,137.63,7.91569546]
[1764357578699,0.7,137.67,137.64,0.65]
[1764357581124,0.7,137.67,137.64,7.91522849]
[1764357582607,0.2,137.68,137.65,0.65]
[1764357582930,0.2,137.68,137.65,4.50038308]
[1764357583403,0.2,137.68,137.65,3.85038308]
[1764357583608,0.2,137.68,137.66,0.65]
[1764357583806,0.2,137.68,137.66,7.91425106]
[1764357587235,0.9,137.68,137.65,3.2]
[1764357587440,0.9,137.68,137.65,3.85]
[1764357587605,0.2,137.68,137.65,3.85]
[1764357589142,0.2,137.68,137.65,3.2]
[1764357589312,0.9,137.68,137.65,3.85]
[1764357590632,0.9,137.68,137.65,7.70038308]
[1764357591531,0.9,137.68,137.65,14.96514999]
[1764357594048,0.7,137.67,137.65,3.2]
[1764357594226,3.85038308,137.66,137.61,0.65]
[1764357594417,3.85038308,137.65,137.61,3.85]
[1764357594626,0.7,137.64,137.61,3.85]
[1764357595022,4.55038308,137.65,137.61,3.85]
[1764357595222,4.55038308,137.65,137.61,10.46682667]
[1764357595440,4.55038308,137.65,137.62,0.65]
[1764357595749,0.7,137.65,137.62,0.65]
[1764357596252,11.81522573,137.65,137.62,0.65]
[1764357598556,10.42742849,137.65,137.62,0.65]
[1764357598930,7.96484265,137.65,137.62,0.65]
[1764357599254,10.42742849,137.65,137.62,0.65]
[1764357600659,7.96484265,137.65,137.62,0.65]
[1764357600845,10.42742849,137.65,137.62,0.65]
[1764357601045,9.72742849,137.65,137.61,10.46682667]
[1764357601245,2.46258584,137.64,137.62,0.65]
[1764357601838,10.42742849,137.65,137.62,0.65]
[1764357604939,7.96484265,137.65,137.62,0.65]
[1764357605138,10.42742849,137.65,137.62,0.65]
[1764357606167,10.42742849,137.65,137.59,34.47804368]
[1764357606168,2.46258584,137.63,137.59,34.47804368]
[1764357606339,2.46258584,137.61,137.59,25.43674494]
[1764357606739,0.71,137.6,137.59,7.26756526]
[1764357607237,3.17258584,137.61,137.59,7.26756526]
[1764357607449,3.17258584,137.63,137.6,0.67]
[1764357608182,10.43873418,137.63,137.6,0.67]
[1764357608658,2.46258584,137.62,137.6,0.67]
[1764357608869,3.17258584,137.62,137.59,7.93756526]
[1764357610844,10.439062,137.62,137.59,0.67]
[1764357611369,10.439062,137.62,137.59,7.93791066]
[1764357612036,3.17258584,137.61,137.58,0.67]
[1764357612440,2.46258584,137.61,137.58,0.67]
[1764357613065,2.46258584,137.61,137.58,7.93847854]
[1764357613274,3.17258584,137.6,137.57,3.2]
[1764357613478,2.46258584,137.58,137.54,0.67]
[1764357613646,2.46258584,137.57,137.54,0.67]
[1764357614064,3.17258584,137.57,137.54,0.67]
[1764357614263,0.71,137.57,137.54,0.67]
[1764357614466,3.17258584,137.58,137.54,7.94028161]
[1764357614663,3.17258584,137.58,137.55,0.67]
[1764357615166,10.44122996,137.58,137.55,0.67]
[1764357616268,0.67,137.61,137.55,0.67]
[1764357616474,2.46258584,137.6,137.55,0.67]
[1764357616658,9.7301318,137.6,137.56,7.2695551]
[1764357616859,10.4001318,137.6,137.56,7.2695551]
[1764357617062,10.4001318,137.6,137.56,7.9595551]
[1764357617258,2.46258584,137.6,137.57,0.69]
[1764357617568,3.13258584,137.6,137.57,0.69]
[1764357617775,2.46258584,137.6,137.57,0.69]
[1764357618278,3.13258584,137.6,137.57,0.69]
[1764357618991,2.46258584,137.6,137.57,7.95869063]
[1764357619156,3.13258584,137.62,137.57,7.95869063]
[1764357619352,104.77,137.63,137.58,0.69]
[1764357619567,104.1,137.63,137.58,3.15258584]
[1764357619973,104.1,137.63,137.59,0.69]
[1764357620375,106.56258584,137.63,137.59,0.69]
[1764357620983,106.56258584,137.63,137.6,7.26744186]
[1764357621170,107.23258584,137.63,137.6,7.26744186]
[1764357621376,107.23258584,137.63,137.6,7.95744186]
[1764357622393,114.49848592,137.63,137.6,7.95744186]
[1764357626701,113.82848592,137.63,137.6,7.26744186]
[1764357626898,7.26538101,137.64,137.61,0.69]
[1764357627199,125.39232356,137.67,137.61,3.15258584]
[1764357627396,125.39232356,137.67,137.63,16.308864]
[1764357627397,3.13258584,137.67,137.63,16.308864]
[1764357627601,10.3964705,137.67,137.63,23.57436487]
[1764357628097,10.3964705,137.67,137.64,0.69]
[1764357628800,9.92601619,137.68,137.64,7.95510826]
[1764357628976,10.59601619,137.68,137.64,7.95510826]
[1764357629293,7.46343035,137.68,137.65,0.69]
[1764357629493,9.92601619,137.68,137.65,0.69]
[1764357629897,9.92601619,137.68,137.65,7.95475807]
[1764357630098,10.59601619,137.68,137.65,7.95475807]
[1764357630397,0.87,137.68,137.65,0.69]
[1764357630574,2.46258584,137.66,137.63,20.198864]
[1764357630801,2.46258584,137.64,137.6,0.69]
[1764357630999,2.46258584,137.63,137.6,16.998864]
[1764357631395,3.13258584,137.63,137.6,16.998864]
[1764357631901,3.13258584,137.63,137.61,7.26691374]
[1764357632198,2.46258584,137.63,137.61,7.26691374]
[1764357632396,2.46258584,137.63,137.61,7.95691374]
[1764357632796,2.46258584,137.64,137.61,7.95691374]
[1764357632998,3.13258584,137.64,137.61,7.95691374]
[1764357633392,2.46258584,137.64,137.61,7.26691374]
[1764357633604,2.46258584,137.66,137.62,0.69]
[1764357633803,115.23397895,137.67,137.62,0.69]
[1764357633804,106.56258584,137.67,137.62,3.89]
[1764357634011,2.66258584,137.68,137.63,16.07580265]
[1764357634307,2.66258584,137.68,137.63,19.22838849]
[1764357634478,0.2,137.68,137.64,0.69]
[1764357634684,0.2,137.68,137.64,3.15258584]
[1764357635102,0.2,137.68,137.65,3.89]
[1764357635503,0.2,137.68,137.66,0.69]
[1764357636007,0.2,137.68,137.66,7.95403174]
[1764357637604,0.2,137.68,137.67,0.69]
[1764357639385,0.2,137.68,137.67,7.95374664]
[1764357640213,0.2,137.68,137.67,19.2262774]
[1764357642412,0.2,137.68,137.67,35.81946454]
[1764357643619,0.2,137.68,137.67,33.3568787]
[1764357643828,0.2,137.68,137.67,19.51060054]
[1764357643991,0.2,137.68,137.67,17.0480147]
[1764357644197,0.2,137.68,137.67,19.51060054]
[1764357644402,0.2,137.79,137.68,0.97432314]
[1764357644593,0.2,137.79,137.78,11.27253076]
[1764357644896,0.2,137.79,137.78,43.44650356]
[1764357645096,0.2,137.81,137.8,25.11880892]
[1764357645306,3.4243433,137.84,137.81,25.11880892]
[1764357645621,3.4243433,137.84,137.82,0.28432314]
[1764357645796,3.4243433,137.84,137.83,2.74690898]
[1764357645996,3.4243433,137.84,137.83,3.2]
[1764357645997,4.0843433,137.84,137.83,3.2]
[1764357646193,4.0843433,137.84,137.81,16.308864]
[1764357646525,0.66,137.83,137.82,16.308864]
[1764357647099,3.4243433,137.84,137.82,16.308864]
[1764357647418,3.4243433,137.84,137.82,5.84645702]
[1764357647601,4.0843433,137.84,137.83,3.2]
[1764357648398,4.0843433,137.84,137.83,26.76417851]
[1764357649109,3.4243433,137.84,137.83,26.76417851]
[1764357649638,3.4243433,137.84,137.83,32.61063553]
[1764357649934,4.0843433,137.84,137.83,32.61063553]
[1764357650442,4.0843433,137.84,137.83,25.35532102]
[1764357650615,4.0843433,137.84,137.83,16.308864]
[1764357650815,9.93080032,137.84,137.79,3.2]
[1764357651033,0.66,137.83,137.79,10.45738148]
[1764357651214,0.66,137.83,137.8,5.84645702]
[1764357651613,0.66,137.83,137.79,9.04645702]
[1764357651841,0.66,137.83,137.79,16.30378466]
[1764357652516,0.66,137.83,137.79,10.45732764]
[1764357652716,0.66,137.83,137.79,26.76619164]
[1764357655343,0.66,137.83,137.79,44.90974342]
[1764357657220,75.0,137.92,137.82,16.308864]
[1764357657455,0.66,137.91,137.9,16.308864]
[1764357657617,0.66,137.91,137.89,0.28432314]
[1764357657817,0.66,137.91,137.87,19.508864]
[1764357658033,6.50645702,137.91,137.87,3.2]
[1764357658244,0.66,137.91,137.87,3.2]
[1764357658417,0.66,137.9,137.88,16.308864]
[1764357658617,0.66,137.9,137.88,26.47693032]
[1764357658820,0.66,137.9,137.89,10.16806632]
[1764357659041,10.16806632,137.96,137.89,17.42022383]
[1764357659225,0.66,137.94,137.92,10.16806632]
[1764357659426,0.66,137.94,137.93,10.16806632]
[1764357660232,0.66,137.96,137.93,13.36806632]
[1764357660451,0.66,137.96,137.95,10.16806632]
[1764357660635,0.66,137.96,137.93,19.508864]
[1764357660847,0.66,137.96,137.95,10.16806632]
[1764357661036,0.66,137.96,137.94,7.24904543]
[1764357661439,0.66,137.96,137.94,10.16806632]
[1764357661633,0.66,137.96,137.93,7.24980531]
[1764357661849,10.82806632,137.96,137.92,23.55938613]
[1764357662034,0.66,137.96,137.92,23.55938613]
[1764357662233,0.66,137.95,137.92,33.72745245]
[1764357662638,0.66,137.95,137.92,7.25052213]
[1764357662953,0.66,137.95,137.91,17.41902484]
[1764357663247,7.90907086,137.95,137.91,7.25095852]
[1764357663429,18.07713718,137.95,137.91,7.25095852]
[1764357663632,0.66,137.94,137.91,7.25095852]
[1764357667849,19.508864,137.99,137.93,10.16806632]
[1764357668028,18.79229488,138.03,137.98,10.16806632]
[1764357668029,0.68,138.0,137.98,10.16806632]
[1764357668231,0.68,138.0,137.99,10.16806632]
[1764357668444,0.68,138.0,137.97,3.2]
[1764357668644,0.68,138.0,137.99,10.16806632]
[1764357668857,0.68,138.0,137.97,3.2]
[1764357669033,0.68,138.0,137.99,10.16806632]
[1764357669234,7.24457287,138.04,137.99,10.16806632]
[1764357669434,7.92496689,138.03,138.01,10.16806632]
[1764357670031,0.68,138.02,138.0,10.16806632]
[1764357670227,0.68,138.02,138.01,10.16806632]
[1764357670646,0.68,138.02,137.98,23.55599048]
[1764357670647,0.68,138.02,138.0,10.16806632]
[1764357671159,36.20671482,138.02,137.93,7.53426572]
[1764357671459,36.20671482,138.02,137.95,10.16806632]
[1764357671460,29.2386485,138.02,137.95,10.16806632]
[1764357671653,10.84806632,138.01,137.96,10.16806632]